Cogmind - Beta 9.6 @@@ ROGUE MODE // 2020.08.14 @ 17:45:38 Player: Qnick Result: Destroyed by Y-45 Defender with Beam Rifle Performance ------------- Evolutions (1) 500 Regions Visited (3) 600 Robots Destroyed (51) 255 Value Destroyed (1212) 1212 Prototype IDs (5) 100 Alien Tech Used (0) 0 Bonus (-219) -219 TOTAL SCORE: 2448 Bonus ------- High Alert Combat Kills 51 Follower Combat Kills 102 Friendly Fire -372 Cogmind --------- Core Integrity 0/400 Matter 209/300 Energy 280/280 System Corruption 1% Temperature Cool (9) Movement Core (150) Ox2 Location -9/Materials Parts ------- > --- POWER (1) -------- Heavy Ion Engine > --- PROPULSION (2) --- (None) > --- UTILITY (4) ------ (None) > --- WEAPON (2) ------- (None) > --- INVENTORY (4) ---- Medium Matter Pod (12) Peak State ------------ > --- POWER ------------ Light Ion Engine > --- PROPULSION ------- Compact Wheel > --- UTILITY ---------- Small Storage Unit Experimental Sensor Array Transmission Jammer Long-range Tractor Beam > --- WEAPON ----------- Rocket Launcher Flail > --- INVENTORY -------- Medium Matter Pod Light Assault Rifle Light Cannon Grenade Launcher Mining Laser [Rating: 19] Favorites ----------- Power Light Ion Engine Engine Light Ion Engine Propulsion Wheel Wheel Wheel Hover Unit Backup Propulsion I Flight Unit VTOL Module Utility Small Storage Unit Device Experimental Sensor Array Storage Small Storage Unit Protection Weapon Shielding Weapon Light Cannon Energy Gun Small Laser Energy Cannon Advanced Beam Cannon Ballistic Gun Light Assault Rifle Ballistic Cannon Light Cannon Launcher Grenade Launcher Special Weapon Mining Laser Impact Weapon Flail Build | -11 -10 -10 -9 ------- Run | Scr Mat Min Mat Slots Evolved 2 | . . . 2 Power . | . . . . Propulsion . | . . . . Utility 2 | . . . 2 Weapon . | . . . . Parts Attached 48 | 6 20 2 20 Power 4 | 1 1 1 1 Engine 4 | 1 1 1 1 Core . | . . . . Reactor . | . . . . Propulsion 10 | 2 6 . 2 Treads . | . . . . Leg . | . . . . Wheel 8 | 2 4 . 2 Hover . | . . . . Flight 2 | . 2 . . Utility 12 | 1 4 1 6 Device 6 | 1 . 1 4 Storage 3 | . 3 . . Processor . | . . . . Hackware . | . . . . Protection 3 | . 1 . 2 Artifact . | . . . . Weapon 22 | 2 9 . 11 Energy Gun 2 | 2 . . . Energy Cannon 1 | . . . 1 Ballistic Gun 2 | . . . 2 Ballistic Cannon 6 | . 5 . 1 Launcher 7 | . 4 . 3 Special Weapon 1 | . . . 1 Impact Weapon 3 | . . . 3 Slashing Weapon . | . . . . Piercing Weapon . | . . . . Special Melee Weapon . | . . . . Unidentified Prototypes 3 | . . 1 2 Parts Lost 18 | . 4 1 13 Power 3 | . 1 1 1 Propulsion 3 | . 1 . 2 Utility 3 | . . . 3 Weapon 9 | . 2 . 7 Highest Loss Streak 8 | . 2 1 8 Average Slot Usage (%) 83 | . 79 96 76 Engine 11 | . 13 11 9 Wheel 17 | . 14 28 11 Hover 1 | . 5 . . Flight 1 | . 6 . . Device 15 | . 7 14 20 Storage 11 | . 10 14 11 Protection 2 | . 6 . 2 Energy Gun 2 | . 10 . . Ballistic Gun 1 | . . . 3 Ballistic Cannon 6 | . 1 14 4 Launcher 8 | . 1 14 7 Impact Weapon 1 | . . . 3 Naked Turns . | . . . . Heaviest Build 18 | 6 16 16 18 Greatest Support 26 | 20 20 20 26 Greatest Overweight (x) 4 | . . . 4 Average Overweight (x) . | . . . . Largest Inventory Capacity 10 | 4 10 6 6 Average Capacity 5 | 4 5 6 5 Most Carried 6 | 2 6 6 6 Average Carried 3 | . 3 4 4 Final Capacity 6 | 4 6 6 4 Final Carried 5 | . 2 5 1 Class Distribution -------------------- 100% | Mutant Dominant Class ---------------- Mutant | -10/Materials Mutant | -10/Mines Mutant | -9/Materials Resources | -11 -10 -10 -9 ----------- Run | Scr Mat Min Mat Matter Collected 1016 | 260 219 192 345 Remotely 172 | . . . 172 Salvage Created 1165 | 43 424 30 668 Parts 82 | 4 28 6 44 Haulers Intercepted . | . . . . Recyclers Shooed 1 | . 1 . . Parts Field Recycled . | . . . . Retrieved Matter . | . . . . Parts Self-Destructed . | . . . . Prevented . | . . . . Kills | -11 -10 -10 -9 ------- Run | Scr Mat Min Mat Combat Hostiles Destroyed 39 | 1 14 5 19 Melee 2 | . . . 2 Guns 7 | 1 4 . 2 Cannons 5 | . 3 1 1 AOE 25 | . 7 4 14 Classes Destroyed 8 | 1 5 1 1 Worker 5 | . 2 . 3 Builder 1 | . 1 . . Recycler 1 | . 1 . . Watcher 3 | . 2 . 1 Swarmer 9 | . 6 3 . Grunt 27 | 1 8 . 18 Sentry 3 | . . . 3 Assembled 2 | . . 2 . Best Kill Streak 8 | 1 7 3 8 Combat Bots Only 6 | 1 4 3 6 Max Kills in Single Turn 4 | 1 3 3 4 Gunslinging . | . . . . Exploded 3 | . 2 2 3 Melee 1 | . . . 1 Uniques/NPCs Destroyed . | . . . . Combat | -11 -10 -10 -9 -------- Run | Scr Mat Min Mat Damage Taken 1980 | 66 412 52 1450 Core 571 | 44 109 8 410 Absorbed by Shields . | . . . . Core Remaining (%) 58 | 82 . 35 . Volleys Fired 78 | 2 38 4 34 Largest 2 | 2 2 2 2 Hottest 91 | 80 80 65 91 Shots Fired 109 | 4 50 8 47 Gun 44 | 4 29 . 11 Cannon 29 | . 10 4 15 Launcher 36 | . 11 4 21 Special . | . . . . Kinetic 32 | . 10 4 18 Thermal 41 | 4 29 . 8 Explosive 36 | . 11 4 21 Electromagnetic . | . . . . Robot Hit Streak 19 | 3 7 6 19 Robot Miss Streak 4 | 1 3 . 4 Penetration Max . | . . . . Secondary Targets . | . . . . Shots Hit Robots 71 | 3 26 4 38 Core Hits 73 | 2 29 7 35 Critical Hits 3 | . . . 3 Critical Kills . | . . . . Critical Parts Destroyed 3 | . . . 3 Melee Attacks 13 | . . . 13 Impact 13 | . . . 13 Slashing . | . . . . Piercing . | . . . . Sneak Attacks . | . . . . Combat Hostiles . | . . . . Follow-up Attacks . | . . . . Damage Inflicted 3196 | 33 950 228 1985 Guns 404 | 33 207 . 164 Cannons 391 | . 104 50 237 Explosions 2234 | . 639 178 1417 Melee 167 | . . . 167 Ramming . | . . . . Kinetic 391 | . 104 50 237 Thermal 404 | 33 207 . 164 Explosive 2234 | . 639 178 1417 Electromagnetic . | . . . . Impact 167 | . . . 167 Slashing . | . . . . Piercing . | . . . . Highest Corruption 2 | . 2 2 1 Average Corruption 1 | . 1 2 1 Corruption Purged . | . . . . Effects 9 | . 3 3 3 Message Errors 1 | . . . 1 Heat Flow Errors 2 | . 1 1 . Energy Discharges 4 | . 2 1 1 Data Loss (minor) 2 | . . 1 1 Overload Shots . | . . . . Overflow Damage 98 | . 6 . 92 Projectiles 20 | . 6 . 14 Explosions 67 | . . . 67 Melee 11 | . . . 11 Knockbacks 2 | . . . 2 Impact . | . . . . Kinetic 2 | . . . 2 Secondary . | . . . . Self-Inflicted Damage 83 | . . . 83 Shots 3 | . . . 3 Rammed . | . . . . Targets Rammed . | . . . . Kicked . | . . . . Crushed . | . . . . Highest Temperature 223 | 42 82 223 30 Average Temperature 27 | 21 12 65 10 Received Heat Transfer 867 | 36 192 . 639 Siege Activations . | . . . . Robots Corrupted . | . . . . Combat Hostiles . | . . . . Parts Fried . | . . . . Impact Corruptions 1 | . . . 1 Robots Melted . | . . . . Combat Hostiles . | . . . . Parts Melted 1 | . 1 . . Heat Transferred 846 | 75 475 . 296 Parts Sabotaged . | . . . . Parts Stolen . | . . . . Parts Stripped . | . . . . Power Chain Reactions . | . . . . Missiles Intercepted . | . . . . Alert | -11 -10 -10 -9 ------- Run | Scr Mat Min Mat Peak Influence 455 | 20 445 165 455 Average Influence 184 | 8 184 125 262 Maximum Alert Level 2 | . 2 . 2 Low Security (%) 64 | 100 59 100 34 Level 1 18 | . 34 . 25 Level 2 17 | . 6 . 40 Level 3 . | . . . . Level 4 . | . . . . Level 5 . | . . . . High Security . | . . . . Max Security . | . . . . Squads Dispatched 11 | . 3 . 8 Investigation 10 | . 3 . 7 Extermination . | . . . . Reinforcement 1 | . . . 1 Assault . | . . . . Garrison . | . . . . Intercept . | . . . . Construction Impeded . | . . . . Haulers Reinforced . | . . . . Stealth | -11 -10 -10 -9 --------- Run | Scr Mat Min Mat Distress Signals 4 | . 1 1 2 Communications Jammed 2 | . . . 2 Distress Signals 2 | . . . 2 Times Spotted 57 | 1 18 6 32 Peak Tracking Total 8 | 1 5 3 8 Tactical Retreats 3 | . . 1 2 Traps | -11 -10 -10 -9 ------- Run | Scr Mat Min Mat Traps Triggered 2 | . 1 . 1 Indirectly . | . . . . Trap Hack Attempts . | . . . . Triggered . | . . . . Disarmed . | . . . . Reprogrammed . | . . . . Reused . | . . . . Traps Extracted . | . . . . Installed . | . . . . Triggered . | . . . . Machines | -11 -10 -10 -9 ---------- Run | Scr Mat Min Mat Machines Disabled 7 | . 4 . 3 Max in Single Turn 1 | . 1 . 1 Machines Sabotaged . | . . . . Garrisons Compromised . | . . . . Overloaded Fab Kills . | . . . . Fab Network Shutdowns . | . . . . Hacking | -11 -10 -10 -9 --------- Run | Scr Mat Min Mat Machines Accessed 12 | . 5 . 7 Terminals 10 | . 3 . 7 Fabricators . | . . . . Repair Stations 1 | . 1 . . Recycling Units 1 | . 1 . . Scanalyzers . | . . . . Garrison Access . | . . . . Total Hacks 47 | . 21 . 26 Successful 22 | . 11 . 11 Failed 25 | . 10 . 15 Catastrophic 6 | . 1 . 5 Database Lockouts . | . . . . Manual 8 | . 4 . 4 Terminals 37 | . 11 . 26 Fabricators . | . . . . Repair Stations 5 | . 5 . . Recycling Units 5 | . 5 . . Scanalyzers . | . . . . Garrison Access . | . . . . Terminal Hacks 14 | . 3 . 11 Record 9 | . 2 . 7 Prototype ID Bank 1 | . . . 1 Alert Level 1 | . 1 . . Unreport Threat 1 | . . . 1 Locate Traps 1 | . . . 1 Zone Layout 1 | . . . 1 Fabricator Hacks . | . . . . Repair Station Hacks 3 | . 3 . . Scan Component 1 | . 1 . . Repair 1 | . 1 . . Refit 1 | . 1 . . Recycling Unit Hacks 5 | . 5 . . Recycle Component 1 | . 1 . . Process 1 | . 1 . . Report Inventory 1 | . 1 . . Retrieve Matter 1 | . 1 . . Retrieve Components 1 | . 1 . . Scanalyzer . | . . . . Garrison Access Hacks . | . . . . Unauthorized Hacks . | . . . . Terminals . | . . . . Fabricators . | . . . . Repair Stations . | . . . . Recycling Units . | . . . . Scanalyzers . | . . . . Garrison Access . | . . . . Data Cores Recovered . | . . . . Used . | . . . . Hacking Detections 12 | . 5 . 7 Full Trace Events 11 | . 5 . 6 Feedback Events 2 | . 1 . 1 Corruption 2 | . 1 . 1 Feedback Blocked . | . . . . Robot Schematics Acquired . | . . . . Robots Built . | . . . . Matter . | . . . . Time . | . . . . Total Robot Build Rating . | . . . . Part Schematics Acquired . | . . . . Parts Built . | . . . . Matter . | . . . . Time . | . . . . Total Part Build Rating . | . . . . Parts Repaired 1 | . 1 . . Time 26 | . 26 . . Parts Recycled 1 | . 1 . . Recycled Matter . | . . . . Retrieved Matter . | . . . . Retrieved Components 7 | . 7 . . Parts Scanalyzed . | . . . . Part Schematics Acquired . | . . . . Parts Damaged . | . . . . Bothacking | -11 -10 -10 -9 ------------ Run | Scr Mat Min Mat Used RIF Installer . | . . . . Robots Hacked . | . . . . Non-combat . | . . . . Combat . | . . . . Robot Hacks Applied . | . . . . Relay Couplers Released . | . . . . Robots Rewired . | . . . . Allies Hacked . | . . . . Hacks Repelled . | . . . . Allies | -11 -10 -10 -9 -------- Run | Scr Mat Min Mat Total Allies 3 | . . 3 . Largest Group 3 | . . 3 3 Highest-Rated Group 40 | . . 40 40 Highest-Rated Ally 16 | . . 16 16 Total Orders . | . . . . Ally Attacks 32 | . . . 32 Total Damage 390 | . . . 390 Kills 8 | . . . 8 Allies Corrupted . | . . . . Allies Melted . | . . . . Intel | -11 -10 -10 -9 ------- Run | Scr Mat Min Mat Robot Analysis Total . | . . . . Derelict Logs Recovered 2 | . . 2 . Drone Launches . | . . . . Drone Recoveries . | . . . . Exploration | -11 -10 -10 -9 ------------- Run | Scr Mat Min Mat Turns Passed 1623 | 113 406 476 628 Spaces Moved 1469 | 122 364 544 439 Core 62 | 20 . . 42 Treads . | . . . . Legs . | . . . . Wheels 1257 | 102 214 544 397 Hover 29 | . 29 . . Flight 121 | . 121 . . Fastest Speed 37 | 50 37 80 80 Average Speed 82 | 75 65 80 102 Slowest Speed 250 | 80 80 80 250 Overloaded Moves . | . . . . Propulsion Burnouts . | . . . . Robots Hopped 1 | . 1 . . Cave-ins Triggered . | . . . . Exploration Rate (%) 48 | 8 53 91 40 Regions Visited 3 Branch Regions 1 Pre-discovered Areas . | . . . . Known Exits Taken . | . . . . Unknown Exits Taken 3 | 1 1 1 . Scrap Searched . | . . . . Spaces Dug 8 | . . . 8 Terrain Destroyed 244 | . 98 26 120 Melee . | . . . . Projectile . | . . . . AOE 244 | . 98 26 120 Actions | -11 -10 -10 -9 --------- Run | Scr Mat Min Mat Total 1761 | 139 490 578 554 Wait 78 | 4 33 20 21 Move 1464 | 121 361 543 439 Hop 1 | . 1 . . Pick Up 43 | 6 17 6 14 Fast Attach . | . . . . Attach 45 | 6 20 2 17 Detach 15 | . 11 1 3 Swap 3 | . . . 3 Drop 21 | . 9 2 10 Fire 78 | 2 38 4 34 Melee 13 | . . . 13 Ram . | . . . . Kick . | . . . . Crush . | . . . . Escape Stasis . | . . . . Rewire . | . . . . Trap . | . . . . Miscellaneous . | . . . . Route ------- -11/Scrapyard -10/Materials (discovered 2 exits: *Mat / [*Min]) -10/Mines (discovered 2 exits: *Mat x2) -9/Materials History --------- Turn | Location | Event 2 | -11/Scrapyard | Met Revision 17 37 | -11/Scrapyard | Discovered new exit (range 8) 114 | -11/Scrapyard | Entered Materials 243 | -10/Materials | Repaired Wheel 268 | -10/Materials | Core integrity fell below 50% 422 | -10/Materials | Discovered new exit (range 4) 440 | -10/Materials | Build established: Mutant 494 | -10/Materials | Discovered new exit (range 15) 520 | -10/Materials | Entered Mines 520 | -10/Mines | Found a damaged Exp. Sensor Array with a note attached 523 | -10/Mines | Found Prototype Device 524 | -10/Mines | Identified Exp. Sensor Array 544 | -10/Mines | Assembled infested the area 730 | -10/Mines | Discovered new exit (range 15) 739 | -10/Mines | Learned Materials garrison access intel 783 | -10/Mines | Received a Rocket Launcher from a helpful Derelict 916 | -10/Mines | Assisted by bots powering up and referring to "LRC-V3" 968 | -10/Mines | Discovered new exit (range 6) 996 | -10/Mines | Entered Materials 996 | -9/Materials | Accompanied by 3 allies 996 | -9/Materials | Evolved 2 slots: Utility x2 1523 | -9/Materials | Core integrity fell below 50% 1575 | -9/Materials | Core integrity fell below 20% 1580 | -9/Materials | Lost 8 parts (1p1n1u5w) 1624 | -9/Materials | Destroyed by Y-45 Defender with Beam Rifle Last Messages --------------- 01524_ K-01 Serf collects debris. 01526_ U-05 Engineer builds a Door. 01531_ U-05 Engineer builds a Wall. 01535_ Acquired Prototype Engine. 01536_ Identified Hvy. Ion Engine. 01537_ K-01 Serf collects debris. 01540_ Lgt. Cannon destroyed. 01549_ Mining Laser destroyed. 01553_ U-05 Engineer lays Concrete. 01575_ Y-45 Defender destroyed. 01590_ Connecting with Terminal... 01591_ K-01 Serf collects debris. 01593_ R-06 Scavenger collects Ion Engine. 01596_ K-01 Serf collects debris. 01603_ R-06 Scavenger collects Imp. Ion Engine. 01605_ Destroyed Sml. Laser. 01605_ G-34 Mercenary system corrupted by crushing effect. 01605_ K-01 Serf collects debris. 01612_ Flail destroyed. 01621_ Sml. Storage Unit destroyed. Map ----- +----------------------------------------------------+ | ?????############ ###?# " "%=/*%% === | | ?????# ## #???# " ""!### % | | ?????# ! ## ##??# ! !#???? * | | ?????#]!! # #?## % #?????? ? | | ?????#]!! + #?# = [%#???????? ? | | ?????# """ # #?# !*=#?????????? ?? | | ?????# """ # #??# ! * %==#????? ???##?? | | ?????# """ # ########+## ####= !! ?????? | | ?????# # ! ?????? | | ?????#######+### ?????? | | ???????????# #?# *% % ?????? | | ???????????# #?###+########+#####+##+#### ??????? | | ???????????# #?# ## ! #? ????????????? | | ?########### #?# ## #??! #??????????? | | ?# # #?# """ ## #????+??????????? | | ?# # #?# """ ##"" #???????????????? | | ?# # ### """ ##"" *#???????????????? | | ?# """ # # ##"T **#???????????????? | | ?# """ + + "" ##"" #???????????????? | | ?# """ # # #"" #???????????????? | | ?# "T" # # # #???????????????? | | ?# """ # # ### ##/###???????????????? | | ?########### # ########## #?????????????????? | | ??# #### ## # ####+###???????????????? | | ??# *##### # g ##??????????????? | | ??# @/ /Y #????????????? | | ??# !##### # ####????????????? | | ??# ###### # # =# #???????????????? | | ??## ##????# #### ## #???????????????? | | ???# #?????## # # #???????????????? | | ???# #??????#### # ########???????????????? | | ???# #?????????# # ###????????????????????? | | ???# ########### # #????????????????????? | | ???# ## # # ###???????????????????? | | ??## ## # # !! #???????????????????? | | ??# # # # = !!#????#####??????????? | | ??????????""""""" ### !!#????#! #??????????? | | ????????????""?"" # # !!#????# =#??????????? | | ????????????????"?# # = !#????# #??????????? | | ????????????????"?# # !!#????# "#??????????? | | ??????????????????## ###????# T#??????????? | | ??????????????????# *= ######### "#?????###### | | ??????????????????# [ = # #?????# | | ??????????????????## != # """" ##+######## """ | | ???????????????????##= # """" + + """ | | ????????????????????# !!/ """" ## ######## """ | | ????????????????????# # ## #??????# | | ????????????????????# # """" ## #??????# | | ????????????????????# # """" ## #??????###### | | ????????????????????# # """" ## ############# | +----------------------------------------------------+ Best States ------------- Heat Dissipation 38 Energy Generation 14 Energy Capacity 280 Matter Stores 300 Matter Capacity 300 Sight Range 16 Robot Scan Range 30 Terrain Scan Density 10 Jamming Range 8 Weapon Shielding 33 Reclamation Efficiency 10 Evasion (%) 62 Item Schematics ----------------- None Robot Schematics ------------------ None Fabricated ------------ Nothing Alien Tech Used ----------------- None Achievements -------------- Backstab Crack Shot I Survived The Infestation Novice Programmer One Hack Too Far Party Time Remodeling Risk Taker Use The Force Challenges ------------ None Game ------ Seed AccelerationHellfireStorage Manual? 0 Play Time 00:54:39 Cumulative 2.5 hours Start 2020.08.14 @ 16:26:27 End 2020.08.14 @ 17:45:38 Sessions 1 Manual Loads 0 Difficulty Rogue Special Mode None Game No. 2 Rogue 2 Adventurer 0 Explorer 0 Win Type - Total 0 Types 0/0/0/0/0/0/0 Lore% 2 Gallery% 4 Achievement% 6 Wizard Run 0 Options --------- ASCII 0 Keyboard 0 Movement Numpad Keybinds 0 Fullscreen 1 Font 20/Smallcaps Map View 66x50 Tactical HUD 1 Map Filters NONE Filters NONE Steam 1 RUN: efc92774-ab20-4005-af54-045d28b920db